bitfinex/quotes_BTCUSD_20250829
["timestamp","ask_amount","ask_price","bid_price","bid_amount"]
[1756447047312,0.8880966,111420.0,111410.0,0.15555]
[1756447047517,0.53906116,111420.0,111410.0,0.15555]
[1756447049999,0.53906116,111420.0,111410.0,0.00499]
[1756447050219,0.19002572,111420.0,111410.0,0.15348]
[1756447050422,0.53906116,111420.0,111410.0,0.00499]
[1756447050617,0.53906116,111420.0,111410.0,0.15344]
[1756447051148,0.19002572,111420.0,111410.0,0.15344]
[1756447051300,0.8880966,111420.0,111410.0,0.15344]
[1756447051716,0.53906116,111420.0,111410.0,0.15344]
[1756447051917,0.53906116,111420.0,111410.0,0.15547]
[1756447052153,0.53906116,111420.0,111410.0,0.00499]
[1756447052357,0.53906116,111420.0,111410.0,0.15547]
[1756447055372,0.53906116,111420.0,111410.0,0.33498709]
[1756447055634,0.53906116,111420.0,111410.0,0.15547]
[1756447058090,0.53906116,111420.0,111410.0,0.00499]
[1756447058308,0.53906116,111420.0,111410.0,0.15539]
[1756447062385,0.55836293,111420.0,111410.0,0.33490709]
[1756447062608,0.001,111420.0,111410.0,0.33490709]
[1756447063671,0.33809167,111430.0,111420.0,0.17950098]
[1756447063840,0.33809167,111430.0,111420.0,0.18153098]
[1756447064069,0.52852077,111430.0,111420.0,0.18449098]
[1756447065143,0.5389285,111430.0,111420.0,0.00499]
[1756447065392,0.5389285,111430.0,111420.0,0.18449098]
[1756447074968,0.5389285,111430.0,111420.0,0.33465098]
[1756447077410,0.5389285,111430.0,111420.0,0.33461098]
[1756447080159,0.5389285,111430.0,111420.0,0.18449098]
[1756447080556,0.5389285,111430.0,111420.0,0.33457098]
[1756447083431,0.5389285,111430.0,111420.0,0.15507]
[1756447087673,0.5389285,111430.0,111420.0,0.33457098]
[1756447091362,0.887161,111430.0,111420.0,0.33457098]
[1756447095128,0.34963397,111430.0,111420.0,0.33457098]
[1756447095361,0.001,111430.0,111420.0,0.33457098]
[1756447095602,0.34963397,111430.0,111420.0,0.36154998]
[1756447096540,0.34863397,111430.0,111420.0,0.4498463]
[1756447096922,0.34863397,111430.0,111420.0,0.4518463]
[1756447097351,0.18854943,111440.0,111430.0,0.17948487]
[1756447097559,0.53709757,111440.0,111430.0,0.18464487]
[1756447098248,0.00946586,111450.0,111440.0,0.17946877]
[1756447098460,0.358014,111450.0,111440.0,0.33477877]
[1756447098738,0.34854814,111450.0,111440.0,0.33482656]
[1756447098949,0.35779345,111450.0,111440.0,0.33482656]
[1756447099640,0.53724611,111450.0,111440.0,0.18474656]
[1756447099877,0.88579425,111450.0,111440.0,4.779e-05]
[1756447100114,0.88579425,111450.0,111440.0,0.15012779]
[1756447101327,0.88579425,111450.0,111440.0,0.32959656]
[1756447101631,0.88579425,111450.0,111440.0,0.33265656]
[1756447101801,0.88579425,111450.0,111440.0,0.18257656]
[1756447102469,0.88579425,111450.0,111440.0,0.33265656]
[1756447103276,0.88579425,111450.0,111440.0,0.00310779]
[1756447103475,0.88579425,111450.0,111440.0,0.15314779]
[1756447103882,0.88579425,111450.0,111440.0,0.15531779]
[1756447105463,0.18869797,111450.0,111440.0,0.15531779]
[1756447105642,0.88579425,111450.0,111440.0,0.15531779]
[1756447106481,0.18869797,111450.0,111440.0,0.15531779]
[1756447106688,0.88579425,111450.0,111440.0,0.15531779]
[1756447107128,0.18869797,111450.0,111440.0,0.15531779]
[1756447107350,0.00924531,111450.0,111440.0,0.33702991]
[1756447107555,0.53724611,111450.0,111440.0,0.33478656]
[1756447107871,0.5280008,111450.0,111440.0,0.33478656]
[1756447108445,0.3579886,111450.0,111440.0,0.33478656]
[1756447108598,0.3579886,111450.0,111440.0,0.33578656]
[1756447109030,0.34854814,111450.0,111440.0,0.33578656]
[1756447111105,0.34854814,111450.0,111440.0,0.40478656]
[1756447111548,0.34854814,111450.0,111440.0,0.43176056]
[1756447111985,0.51952985,111460.0,111450.0,0.17945266]
[1756447112195,0.86807799,111460.0,111450.0,0.18162266]
[1756447112397,0.87731765,111460.0,111450.0,0.18468266]
[1756447116032,0.3577878,111460.0,111450.0,0.18468266]
[1756447116326,0.53722436,111460.0,111450.0,0.18468266]
[1756447117160,0.53722436,111460.0,111450.0,0.33472266]
[1756447117376,0.88552816,111460.0,111450.0,0.33255266]
[1756447118200,0.88552816,111460.0,111450.0,0.33472266]
[1756447119952,0.88552816,111460.0,111450.0,0.33572266]
[1756447120827,0.88552816,111460.0,111450.0,0.18568266]
[1756447121044,0.88552816,111460.0,111450.0,0.33572266]
[1756447123062,0.18867622,111460.0,111450.0,0.33572266]
[1756447123295,0.7060916,111460.0,111450.0,0.33572266]
[1756447125052,0.69685194,111460.0,111450.0,0.33572266]
[1756447125906,0.19775733,111470.0,111450.0,0.33572266]
[1756447126111,0.69685194,111460.0,111450.0,0.33266266]
[1756447126692,0.69685194,111460.0,111450.0,0.33572266]
[1756447127093,0.69685194,111460.0,111450.0,0.18568266]
[1756447127301,0.69685194,111460.0,111450.0,0.33568266]
[1756447127974,0.8762885,111460.0,111450.0,0.18568266]
[1756447128281,0.8762885,111460.0,111450.0,0.00623]
[1756447128468,0.8762885,111460.0,111450.0,0.15623]
[1756447128681,0.8762885,111460.0,111450.0,0.33568266]
[1756447129579,0.8762885,111460.0,111450.0,0.18568266]
[1756447129791,0.8762885,111460.0,111450.0,0.36265466]
[1756447131803,0.69685194,111460.0,111450.0,0.36265466]
[1756447132471,0.19775733,111470.0,111450.0,0.36265466]
[1756447132688,0.19775733,111470.0,111460.0,0.17943656]
[1756447132877,0.53721228,111470.0,111460.0,0.18436656]
[1756447133115,0.35770335,111470.0,111460.0,0.18436656]
[1756447133543,0.35770335,111470.0,111460.0,0.21133756]
[1756447133922,0.34842597,111470.0,111460.0,0.21133756]
[1756447134561,0.34842597,111470.0,111460.0,0.29963388]
[1756447135124,0.35790244,111480.0,111470.0,0.17942047]
[1756447135327,0.69725194,111480.0,111470.0,0.33435047]
[1756447135563,0.34882597,111480.0,111470.0,0.33435047]
[1756447135923,0.34882597,111480.0,111470.0,0.28031747]
[1756447136128,0.34882597,111480.0,111470.0,0.43031747]
[1756447136331,0.34882597,111480.0,111470.0,0.28031747]
[1756447136595,0.34882597,111480.0,111470.0,0.28131747]
[1756447136771,0.87665631,111480.0,111470.0,0.28131747]
[1756447136965,0.87665631,111480.0,111470.0,0.43131747]
[1756447137187,0.69725194,111480.0,111470.0,0.28131747]
[1756447137398,0.69725194,111480.0,111470.0,0.43131747]
[1756447139496,0.87665631,111480.0,111470.0,0.43127747]
[1756447141188,0.69725194,111480.0,111470.0,0.43127747]
[1756447141570,0.87665631,111480.0,111470.0,0.28131747]
[1756447141770,0.87665631,111480.0,111470.0,0.43127747]
[1756447143009,0.69725194,111480.0,111470.0,0.43127747]
[1756447144049,0.87665631,111480.0,111470.0,0.43127747]
[1756447144460,0.0004,111480.0,111470.0,0.43127747]
[1756447144624,0.34882597,111480.0,111470.0,0.43127747]
[1756447144805,0.69725194,111480.0,111470.0,0.51957379]
[1756447145004,0.34882597,111480.0,111470.0,0.51957379]
[1756447148214,0.69725194,111480.0,111470.0,0.51957379]
[1756447148426,0.34882597,111480.0,111470.0,0.51957379]
[1756447148616,0.34882597,111480.0,111470.0,0.36961379]
[1756447148818,0.34882597,111480.0,111470.0,0.51957379]
[1756447149812,0.87665631,111480.0,111470.0,0.18526332]
[1756447150018,0.17980437,111480.0,111470.0,0.51464379]
[1756447150213,0.87665631,111480.0,111470.0,0.55855798]
[1756447150423,0.17980437,111480.0,111470.0,0.51761379]
[1756447150624,0.87665631,111480.0,111470.0,0.51761379]
[1756447151032,0.87665631,111480.0,111470.0,0.36765379]
[1756447151235,0.87665631,111480.0,111470.0,0.51761379]
[1756447151460,0.17980437,111480.0,111470.0,0.56152798]
[1756447151707,0.87665631,111480.0,111470.0,0.51761379]
[1756447152717,0.87665631,111480.0,111470.0,0.099937]
[1756447152861,0.87665631,111480.0,111470.0,0.21992]
[1756447153083,0.87665631,111480.0,111470.0,0.07]
[1756447153288,0.87665631,111480.0,111470.0,0.21992]
[1756447154279,0.87665631,111480.0,111470.0,0.22289]
[1756447155533,0.87646431,111480.0,111470.0,0.22289]
[1756447156329,0.87646431,111480.0,111470.0,0.40231047]
[1756447158123,0.34872997,111480.0,111470.0,0.40427047]
[1756447158506,0.34872997,111480.0,111470.0,0.49256679]
[1756447160560,0.0004,111480.0,111470.0,0.49256679]
[1756447160768,0.34872997,111480.0,111470.0,0.49256679]
[1756447162690,0.0004,111480.0,111470.0,0.49256679]
[1756447163234,0.0004,111480.0,111470.0,0.51953179]
[1756447164459,0.0004,111480.0,111470.0,0.52891293]
[1756447164656,0.17819,111490.0,111480.0,0.17940437]
[1756447164859,0.17819,111490.0,111480.0,0.18446437]
[1756447165690,0.21618062,111500.0,111490.0,0.17938828]
[1756447165900,0.21618062,111500.0,111490.0,0.33436828]
[1756447165901,0.02784508,111500.0,111490.0,0.33436828]
[1756447166307,0.37617505,111500.0,111490.0,0.33436828]
[1756447166541,0.34920805,111500.0,111490.0,0.33436828]
[1756447166820,0.34920805,111500.0,111490.0,0.33336828]
[1756447167564,0.00087808,111500.0,111490.0,0.4216646]
[1756447168541,0.00087808,111500.0,111490.0,0.4226646]
[1756447168898,0.00087808,111500.0,111490.0,0.4227046]
[1756447169102,0.34920805,111500.0,111490.0,0.4226646]
[1756447169464,0.34920805,111500.0,111490.0,0.4236646]
[1756447171123,0.52858024,111500.0,111490.0,0.24527632]
[1756447171369,0.52858024,111500.0,111490.0,0.09535632]
[1756447171577,0.52858024,111500.0,111490.0,0.24527632]
[1756447171797,0.52858024,111500.0,111490.0,0.24318632]
[1756447172005,0.34920805,111500.0,111490.0,0.2747446]
[1756447172386,0.34920805,111500.0,111490.0,0.4246646]
[1756447172793,0.52858024,111500.0,111490.0,0.2747446]
[1756447173006,0.52858024,111500.0,111490.0,0.4246246]
[1756447174010,0.34920805,111500.0,111490.0,0.4246246]
[1756447174945,0.34920805,111500.0,111490.0,0.2747446]
[1756447175287,0.52858024,111500.0,111490.0,0.4246246]
[1756447175699,0.52858024,111500.0,111490.0,0.09326632]
[1756447175905,0.52858024,111500.0,111490.0,0.15188]
[1756447176278,0.52858024,111500.0,111490.0,0.33126828]
[1756447176487,0.18025027,111500.0,111490.0,0.33126828]
[1756447176689,0.52858024,111500.0,111490.0,0.33423828]
[1756447177263,0.52858024,111500.0,111490.0,0.33632828]
[1756447178250,0.34920805,111500.0,111490.0,0.33632828]
[1756447179006,0.52858024,111500.0,111490.0,0.33632828]
[1756447183317,0.18025027,111500.0,111490.0,0.33632828]
[1756447183538,0.52858024,111500.0,111490.0,0.33632828]
[1756447183740,0.33383939,111500.0,111490.0,0.33632828]
[1756447183986,0.51321158,111500.0,111490.0,0.33632828]
[1756447185731,0.51210868,111500.0,111490.0,0.33632828]
[1756447185942,0.52770216,111500.0,111490.0,0.33632828]
[1756447186767,0.52770216,111500.0,111490.0,0.18644828]
[1756447186970,0.17937219,111500.0,111490.0,0.33632828]
[1756447187115,0.52770216,111500.0,111490.0,0.33632828]
[1756447189345,0.87565693,111500.0,111490.0,0.33632828]
[1756447192299,0.87565693,111500.0,111490.0,0.40528828]
[1756447194597,0.52751456,111500.0,111490.0,0.40528828]
[1756447195858,0.87565693,111500.0,111490.0,0.40528828]
[1756447201781,0.69628474,111500.0,111490.0,0.40528828]
[1756447201997,0.34814237,111500.0,111490.0,0.40528828]
[1756447202886,0.18885256,111510.0,111490.0,0.40528828]
[1756447203095,0.34814237,111500.0,111490.0,0.40231828]
[1756447203716,0.34814237,111500.0,111490.0,0.40546828]
[1756447203922,0.34814237,111500.0,111490.0,0.40446828]
[1756447204565,0.34814237,111500.0,111490.0,0.40346828]
[1756447205627,0.34814237,111500.0,111490.0,0.40546828]
[1756447206247,0.18899592,111510.0,111490.0,0.40546828]
[1756447206600,0.18899592,111510.0,111490.0,0.25243828]
[1756447206601,0.52751456,111500.0,111490.0,0.25243828]
[1756447206824,0.52751456,111500.0,111490.0,0.40231828]
[1756447206980,0.52751456,111500.0,111490.0,0.40331828]
[1756447207184,0.34814237,111500.0,111490.0,0.40646828]
[1756447207766,0.34814237,111500.0,111490.0,0.40446828]
[1756447208376,0.52751456,111500.0,111490.0,0.40446828]
[1756447209002,0.14533514,111510.0,111490.0,0.40646828]
[1756447209212,0.52751456,111500.0,111490.0,0.40646828]
[1756447209881,0.52751456,111500.0,111490.0,0.40546828]
[1756447211314,0.34814237,111500.0,111490.0,0.40546828]
[1756447211927,0.34814237,111500.0,111490.0,0.40646828]
[1756447213741,0.15442485,111510.0,111490.0,0.40646828]
[1756447213944,0.34814237,111500.0,111490.0,0.40331828]
[1756447214587,0.34814237,111500.0,111490.0,0.40646828]
[1756447214786,0.34814237,111500.0,111490.0,0.40546828]
[1756447214987,0.17315616,111500.0,111490.0,0.40546828]
[1756447216040,0.17315616,111500.0,111490.0,0.40646828]
[1756447217687,0.35252835,111500.0,111490.0,0.25658828]
[1756447217907,0.87565693,111500.0,111490.0,0.40122828]
[1756447218307,0.87565693,111500.0,111490.0,0.40440828]
[1756447218806,0.00014336,111510.0,111500.0,0.17937219]
[1756447219015,0.00014336,111510.0,111500.0,0.34356933]
[1756447219217,0.00014336,111510.0,111500.0,0.6917117]
[1756447220640,0.00014336,111510.0,111500.0,1.03985407]
[1756447221078,0.00014336,111510.0,111500.0,1.07585458]
[1756447222073,0.00014336,111510.0,111500.0,1.07885458]
[1756447222448,0.00014336,111510.0,111500.0,1.08185458]
[1756447226224,0.00014336,111510.0,111500.0,1.23169458]
[1756447227837,0.00014336,111510.0,111500.0,1.08185458]
[1756447228060,0.00014336,111510.0,111500.0,0.45573451]
[1756447228225,0.00014336,111510.0,111500.0,0.80387688]
[1756447231356,0.00014336,111510.0,111500.0,0.45573451]
[1756447231605,0.00014336,111510.0,111500.0,0.80387688]
[1756447235593,0.00014336,111510.0,111500.0,0.65403688]
[1756447235796,0.00014336,111510.0,111500.0,0.42877851]
[1756447235963,0.34828573,111510.0,111500.0,0.42877851]
[1756447236403,0.34828573,111510.0,111500.0,0.27684851]
[1756447236404,0.52764184,111510.0,111500.0,0.27684851]
[1756447236585,0.34828573,111510.0,111500.0,0.42350851]
[1756447236787,0.00014336,111510.0,111500.0,0.42668851]
[1756447236963,0.34828573,111510.0,111500.0,0.42877851]
[1756447240349,0.00014336,111510.0,111500.0,0.42877851]
[1756447241119,0.52764184,111510.0,111500.0,0.42877851]
[1756447242330,0.00014336,111510.0,111500.0,0.42877851]
[1756447242604,0.00014336,111510.0,111500.0,0.77692088]
[1756447245746,0.00014336,111510.0,111500.0,0.42877851]
[1756447246067,0.00014336,111510.0,111500.0,0.77692088]
[1756447254295,0.00014336,111510.0,111500.0,0.42877851]
[1756447254519,0.00014336,111510.0,111500.0,0.77692088]
[1756447255118,0.00014336,111510.0,111500.0,0.42877851]
[1756447255316,0.17934041,111520.0,111510.0,0.17935611]
[1756447255635,0.34814237,111520.0,111510.0,0.33421611]
[1756447257146,0.34814237,111520.0,111510.0,0.33621611]
[1756447257694,0.34814237,111520.0,111510.0,0.33821611]
[1756447259129,0.22495705,111530.0,111510.0,0.33821611]
[1756447259345,0.34814237,111520.0,111510.0,0.33821611]
[1756447260181,0.22495705,111530.0,111520.0,0.17934002]
[1756447260182,0.03666662,111530.0,111520.0,0.17934002]
[1756447260397,0.0004,111530.0,111520.0,0.68979871]
[1756447260602,0.0004,111530.0,111520.0,1.03794108]
[1756447260807,0.0004,111530.0,111520.0,1.05442494]
[1756447261227,0.0004,111530.0,111520.0,1.40256731]
[1756447261450,0.0004,111540.0,111530.0,0.51932394]
[1756447261659,0.0004,111540.0,111530.0,1.456795]
[1756447261879,0.0004,111540.0,111530.0,0.96082263]
[1756447262036,0.0004,111540.0,111530.0,1.458765]
[1756447263434,0.0004,111540.0,111530.0,1.11017852]
[1756447264048,0.0004,111540.0,111530.0,1.11517852]
[1756447265636,0.0004,111540.0,111530.0,0.76748026]
[1756447265759,0.0004,111540.0,111530.0,1.11517852]
[1756447265975,0.0004,111540.0,111530.0,1.46287678]
[1756447266182,0.0004,111540.0,111530.0,1.5335076]
[1756447266816,0.0004,111540.0,111530.0,1.3837076]
[1756447267021,0.0004,111540.0,111530.0,1.5335076]
[1756447267496,0.0004,111540.0,111530.0,1.3837076]
[1756447267670,0.0004,111540.0,111530.0,1.5335076]
[1756447268030,0.0004,111540.0,111530.0,1.3837076]
[1756447268231,0.0004,111540.0,111530.0,1.5335076]
[1756447268424,0.0004,111540.0,111530.0,1.57351205]
[1756447268653,0.0004,111540.0,111530.0,1.42371205]
[1756447269011,0.0004,111540.0,111530.0,1.15518297]
[1756447270250,0.0004,111540.0,111530.0,1.15514297]
[1756447270819,0.0004,111540.0,111530.0,1.57706405]
[1756447272570,0.0004,111540.0,111530.0,1.07960579]
[1756447272875,0.0004,111540.0,111530.0,1.22936579]
[1756447274982,0.0004,111540.0,111530.0,0.66127671]
[1756447275138,0.0004,111540.0,111530.0,1.15873497]
[1756447276376,0.0004,111540.0,111530.0,1.00897497]
[1756447276641,0.0004,111540.0,111530.0,1.20264916]
[1756447276874,0.0004,111540.0,111530.0,1.15873497]
[1756447277856,0.0004,111540.0,111530.0,1.27597497]
[1756447278058,0.0004,111540.0,111530.0,1.42573497]
[1756447278309,0.0004,111540.0,111530.0,0.92827671]
[1756447278511,0.0004,111540.0,111530.0,1.03297226]
[1756447278921,0.0004,111540.0,111530.0,1.03614226]
[1756447279095,0.0004,111540.0,111530.0,1.38384052]
[1756447280251,0.0004,111540.0,111530.0,1.38593052]
[1756447280521,0.0004,111540.0,111530.0,1.23617052]
[1756447280733,0.0004,111540.0,111530.0,1.38593052]
[1756447282307,0.0004,111540.0,111530.0,1.42655707]
[1756447283519,0.0004,111540.0,111530.0,1.77425533]
[1756447283730,0.0004,111540.0,111530.0,1.07885881]
[1756447283939,0.0004,111540.0,111530.0,1.77425533]
[1756447285074,0.0004,111540.0,111530.0,2.17425533]
[1756447285982,1e-08,111540.0,111530.0,2.24519415]
[1756447286193,1e-08,111540.0,111530.0,2.09543415]
[1756447286591,1e-08,111540.0,111530.0,2.24591415]
[1756447286834,1e-08,111540.0,111530.0,2.24291415]
[1756447287263,1e-08,111540.0,111530.0,2.24791415]
[1756447287918,1e-08,111540.0,111530.0,2.25291415]
[1756447288800,1e-08,111540.0,111530.0,2.65291415]
[1756447293242,1e-08,111550.0,111540.0,0.76930787]
[1756447293451,1e-08,111550.0,111540.0,1.97910071]
[1756447293667,1e-08,111550.0,111540.0,1.63666245]
[1756447293818,1e-08,111550.0,111540.0,2.20760127]
[1756447294506,1e-08,111550.0,111540.0,2.21419327]
[1756447296124,1e-08,111550.0,111540.0,2.21819327]
[1756447298121,1e-08,111550.0,111540.0,1.31463501]
[1756447298329,1e-08,111550.0,111540.0,0.89369619]
[1756447298541,1e-08,111550.0,111540.0,0.27819619]
[1756447298745,1e-08,111550.0,111540.0,0.42516419]
[1756447298878,0.18767714,111550.0,111540.0,0.24585632]
[1756447299082,0.5353754,111550.0,111540.0,0.24589632]
[1756447299277,0.00838535,111550.0,111540.0,0.42520419]
[1756447299620,0.00838535,111550.0,111540.0,0.42220419]
[1756447299912,0.00838535,111550.0,111540.0,0.42020419]
[1756447300118,1e-08,111550.0,111540.0,0.42020419]
[1756447300317,1e-08,111550.0,111540.0,0.27160419]
[1756447300525,1e-08,111550.0,111540.0,0.42016419]
[1756447300879,1e-08,111550.0,111540.0,0.41816419]
[1756447301086,0.00100001,111550.0,111540.0,0.41816419]
[1756447301291,0.00100001,111550.0,111540.0,0.26760419]
[1756447301481,0.1802918,111550.0,111540.0,0.26760419]
[1756447301703,0.1802918,111550.0,111540.0,0.41816419]
[1756447301911,0.52799006,111550.0,111540.0,0.08829632]
[1756447302094,0.53637255,111550.0,111530.0,0.17932394]
[1756447302296,0.53637255,111550.0,111540.0,0.15056]
[1756447302678,0.53637255,111550.0,111530.0,0.26762026]
[1756447302887,0.52700613,111540.0,111530.0,0.08829632]
[1756447303090,0.52700613,111540.0,111530.0,0.41822026]
[1756447303878,0.52700613,111540.0,111530.0,0.23893632]
[1756447303879,0.17930787,111540.0,111530.0,0.23893632]
[1756447304097,0.17930787,111540.0,111520.0,0.25726702]
[1756447304098,0.17932394,111530.0,111520.0,0.25726702]
[1756447304309,0.17932394,111530.0,111520.0,0.48723634]
[1756447305196,0.52700613,111540.0,111530.0,0.17932394]
[1756447305408,0.18825638,111550.0,111530.0,0.61531852]
[1756447305613,0.00837221,111550.0,111540.0,0.32994787]
[1756447305824,1e-08,111550.0,111540.0,0.32994787]
[1756447306051,0.1792918,111550.0,111540.0,0.32994787]
[1756447306475,1e-08,111550.0,111540.0,0.32994787]
[1756447306689,0.1792918,111550.0,111540.0,0.32994787]
[1756447306909,0.1792918,111550.0,111530.0,0.08829632]
[1756447306910,0.17930787,111540.0,111530.0,0.08829632]
[1756447307123,0.17932394,111530.0,111520.0,0.31893084]
[1756447307357,0.17932394,111530.0,111520.0,0.55794716]
[1756447307573,0.17930787,111540.0,111520.0,0.40822716]
[1756447307785,0.54172377,111540.0,111520.0,0.55798716]
[1756447308200,0.54172377,111540.0,111530.0,0.17932394]
[1756447308443,0.17930787,111540.0,111530.0,0.17932394]
[1756447309107,0.17930787,111540.0,111530.0,0.18032394]
[1756447309319,0.18030787,111540.0,111530.0,0.18032394]
[1756447309502,0.18030787,111540.0,111530.0,0.17932394]
[1756447310561,0.17930787,111540.0,111530.0,0.17932394]
[1756447311645,0.17930787,111540.0,111520.0,0.48735634]
[1756447312422,0.17930787,111540.0,111530.0,0.17932394]
[1756447313631,1e-08,111550.0,111540.0,0.17930787]
[1756447313847,1e-08,111550.0,111540.0,0.33022787]
[1756447314262,0.1792918,111550.0,111540.0,0.33022787]
[1756447315369,0.1792918,111550.0,111530.0,0.27079026]
[1756447315567,0.54172377,111540.0,111530.0,0.17932394]
[1756447315767,0.17930787,111540.0,111530.0,0.33020394]
[1756447316846,0.17930787,111540.0,111530.0,0.33120394]
[1756447317916,0.17930787,111540.0,111530.0,0.33220394]
[1756447318483,0.17930787,111540.0,111530.0,0.18132394]
[1756447318690,0.17930787,111540.0,111530.0,0.33220394]
[1756447320196,0.17930787,111540.0,111530.0,0.18132394]
[1756447320436,0.17930787,111540.0,111530.0,0.33220394]
[1756447321200,0.17930787,111540.0,111530.0,0.15284]
[1756447322591,0.17930787,111540.0,111530.0,0.002]
[1756447322592,0.54172377,111540.0,111530.0,0.002]
[1756447322800,0.54172377,111540.0,111530.0,0.15292]
[1756447323447,0.65095891,111540.0,111530.0,0.002]
[1756447323659,0.99095891,111540.0,111530.0,0.001]
[1756447323862,0.17932394,111530.0,111520.0,0.15092]
[1756447324081,0.17935086,111520.0,111500.0,0.26047079]
[1756447324299,0.54176676,111520.0,111510.0,0.151]
[1756447325553,0.54176676,111520.0,111510.0,0.152]
[1756447325769,0.54176676,111520.0,111510.0,0.15517]
[1756447325917,0.17935086,111520.0,111510.0,0.15517]
[1756447326132,0.17935086,111520.0,111510.0,0.15728]
[1756447326548,0.17935086,111520.0,111510.0,0.15828]
[1756447326750,0.17935086,111520.0,111510.0,0.15617]
[1756447327353,0.527368,111520.0,111510.0,0.15617]
[1756447328105,0.527368,111520.0,111510.0,0.15621]
[1756447328743,0.527368,111520.0,111510.0,0.00517]
[1756447328962,0.527368,111520.0,111510.0,0.15304]
[1756447329115,0.527368,111520.0,111510.0,0.15621]
[1756447329734,0.527368,111520.0,111510.0,0.00517]
[1756447330093,0.527368,111520.0,111510.0,0.15304]
[1756447331504,0.527368,111520.0,111510.0,0.002]
[1756447331715,0.527368,111520.0,111510.0,0.15304]
[1756447332514,0.527368,111520.0,111510.0,0.002]
[1756447332741,0.88504552,111520.0,111510.0,0.002]
[1756447332954,0.91019966,111520.0,111510.0,0.002]
[1756447333165,0.95045517,111520.0,111510.0,0.002]
[1756447333579,1.44966098,111520.0,111510.0,0.002]
[1756447334016,1.44966098,111520.0,111510.0,0.001]
[1756447334231,1.5379573,111520.0,111510.0,0.001]
[1756447334437,0.17938828,111490.0,111480.0,0.14276082]
[1756447334644,0.52740542,111490.0,111480.0,0.24332082]
[1756447334847,0.52740542,111490.0,111480.0,0.24543082]
[1756447335698,0.52740542,111490.0,111480.0,0.2459089]
[1756447335909,0.52740542,111490.0,111480.0,0.1473489]
[1756447336118,0.52740542,111490.0,111480.0,0.3003089]
[1756447336364,0.52740542,111490.0,111480.0,0.22431808]
[1756447336778,0.55766263,111490.0,111480.0,0.22431808]
[1756447336987,0.55766263,111490.0,111480.0,0.15535808]
[1756447337198,1.01706295,111490.0,111480.0,0.00247808]
[1756447337400,0.68388558,111490.0,111480.0,0.00147808]
[1756447337628,0.70315669,111490.0,111480.0,0.00147808]
[1756447338256,0.70315669,111490.0,111480.0,0.00047808]
[1756447338477,0.86443644,111490.0,111480.0,0.00147808]
[1756447338891,0.79981276,111490.0,111480.0,0.00047808]
[1756447339097,0.95269276,111490.0,111480.0,0.00047808]
[1756447339339,0.79980901,111490.0,111480.0,0.00047808]
[1756447339527,0.95268901,111490.0,111480.0,0.00047808]
[1756447339733,0.95266847,111490.0,111480.0,0.00047808]
[1756447340213,0.43693156,111490.0,111480.0,0.00047808]
[1756447340425,0.87060762,111490.0,111480.0,0.00047808]
[1756447341494,0.87895868,111490.0,111480.0,0.00047808]
[1756447341670,0.87892139,111490.0,111480.0,0.00047808]
[1756447342021,0.87892192,111490.0,111480.0,0.00047808]
[1756447342245,0.72604192,111490.0,111480.0,0.00047808]
[1756447342449,0.72604076,111490.0,111480.0,0.00047808]
[1756447342891,0.72604076,111490.0,111480.0,0.00562808]
[1756447342892,0.62939451,111490.0,111480.0,0.00562808]
[1756447343286,0.60845569,111490.0,111480.0,0.00562808]
[1756447343834,0.60845569,111490.0,111480.0,0.0762589]
[1756447344210,0.60845569,111490.0,111480.0,0.2290589]
[1756447345198,0.24559878,111490.0,111480.0,0.2290589]
[1756447345400,0.61680579,111490.0,111480.0,0.2290589]
[1756447347202,0.61680579,111490.0,111480.0,0.15842808]
[1756447348630,0.61681301,111490.0,111480.0,0.15842808]
[1756447349273,0.61681301,111490.0,111480.0,0.00047808]
[1756447349486,0.61681301,111490.0,111480.0,0.15311808]
[1756447349895,0.61681301,111490.0,111480.0,0.00047808]
[1756447352194,0.61683295,111490.0,111480.0,0.00047808]
[1756447352850,0.61683981,111490.0,111480.0,0.00047808]
[1756447354327,0.61683981,111490.0,111480.0,0.00355808]
[1756447354533,0.61683981,111490.0,111480.0,0.00562808]
[1756447355155,0.60011296,111490.0,111480.0,0.00562808]
[1756447356056,0.60011296,111490.0,111480.0,0.00355808]
[1756447356283,0.60011296,111490.0,111480.0,0.00047808]
[1756447357819,0.60011296,111490.0,111480.0,0.00355808]
[1756447358195,0.60011296,111490.0,111480.0,0.00562808]
[1756447359180,0.60013106,111490.0,111480.0,0.00562808]
[1756447359374,0.58554968,111490.0,111480.0,0.00562808]
[1756447359607,0.58554968,111490.0,111480.0,0.00355808]
[1756447360442,0.58554968,111490.0,111480.0,0.00562808]
[1756447361271,0.60233169,111490.0,111480.0,0.00562808]
[1756447361732,0.67227058,111490.0,111480.0,0.00047808]
[1756447361908,1.04148493,111490.0,111480.0,0.00047808]
[1756447362128,1.04777809,111490.0,111480.0,0.00047808]
[1756447362325,0.77902121,111490.0,111480.0,0.00047808]
[1756447362533,0.93533432,111490.0,111480.0,0.00047808]
[1756447362746,0.95844747,111490.0,111480.0,0.00047808]
[1756447363880,1.29844747,111490.0,111480.0,0.00047808]
[1756447364225,1.45108747,111490.0,111480.0,0.00047808]
[1756447365381,1.563447,111490.0,111480.0,0.00047808]
[1756447368260,1.565447,111490.0,111480.0,0.00047808]
[1756447368477,0.86889594,111490.0,111480.0,0.00047808]
[1756447368673,1.565447,111490.0,111480.0,0.00047808]
[1756447369106,1.567447,111490.0,111480.0,0.00047808]
[1756447369313,1.65574332,111490.0,111480.0,0.00047808]
[1756447369610,1.64734566,111490.0,111480.0,0.00047808]
[1756447369844,1.6557518,111490.0,111480.0,0.00047808]
[1756447370326,1.56749548,111490.0,111480.0,0.00047808]
[1756447372398,1.59968479,111490.0,111480.0,0.00047808]
[1756447373030,1.59339981,111490.0,111480.0,0.00047808]
[1756447373281,1.59970105,111490.0,111480.0,0.00047808]
[1756447373720,1.57559784,111490.0,111480.0,0.00047808]
[1756447373899,1.66389255,111490.0,111480.0,0.00047808]
[1756447374094,1.66389188,111490.0,111480.0,0.00047808]
[1756447374520,1.68809143,111490.0,111480.0,0.00047808]
[1756447376452,1.4149658,111490.0,111480.0,0.00047808]
[1756447376654,1.5675258,111490.0,111480.0,0.00047808]
[1756447376877,1.5675258,111490.0,111480.0,0.00361808]
[1756447377074,1.5674858,111490.0,111480.0,0.00361808]
[1756447379189,1.5674858,111490.0,111480.0,0.00047808]
[1756447379418,1.63158257,111490.0,111480.0,0.00047808]
[1756447379689,1.70255798,111490.0,111480.0,0.00047808]
[1756447379896,1.71054774,111490.0,111480.0,0.00047808]
[1756447380119,1.7856455,111490.0,111480.0,0.00047808]
[1756447380525,1.7856055,111490.0,111480.0,0.00047808]
[1756447380922,6.7821715,111490.0,111480.0,0.00047808]
[1756447381125,6.74998219,111490.0,111480.0,0.00047808]
[1756447381567,6.78221882,111490.0,111480.0,0.00047808]
[1756447382671,6.73405568,111490.0,111480.0,0.00047808]
[1756447382875,7.08233121,111490.0,111480.0,0.00047808]